fUSD/lending_fUSD_20250402
["ID","MTS","AMOUNT","RATE_DAILY","PERIOD"]
[357019934,1743580240595,-2593.03,0.00050957,120]
[357019935,1743580240604,-500.0,0.00050957,120]
[357019936,1743580240614,-500.0,0.00050957,120]
[357019937,1743580240624,-500.0,0.00050957,120]
[357019938,1743580240633,-833.33,0.00050957,120]
[357019939,1743580240644,-500.0,0.00050957,120]
[357019940,1743580240653,-1040.89,0.00050957,120]
[357019941,1743580240663,-500.0,0.00050957,120]
[357019942,1743580240673,-727.4177756,0.00050957,30]
[357019946,1743580241544,-22.8922244,0.00050957,30]
[357019947,1743580241552,-1349.78,0.00050957,120]
[357019948,1743580241561,-500.0,0.00050957,120]
[357019949,1743580241570,-574.82776475,0.00050958,120]
[357019950,1743580241578,-500.0,0.00050958,120]
[357019951,1743580241586,-807.16,0.00050958,120]
[357019952,1743580241595,-500.0,0.00050958,120]
[357019953,1743580241603,-500.0,0.00050958,120]
[357019954,1743580241612,-500.0,0.00050958,120]
[357019955,1743580241622,-500.0,0.00050958,120]
[357019956,1743580241631,-500.0,0.00050958,120]
[357019957,1743580241640,-500.0,0.00050958,120]
[357019958,1743580241649,-1077.97,0.00050958,120]
[357019959,1743580241659,-500.0,0.00050958,120]
[357019960,1743580241668,-500.0,0.00050958,120]
[357019961,1743580241678,-500.0,0.00050958,120]
[357019962,1743580241687,-500.0,0.00050958,120]
[357019963,1743580241697,-500.0,0.00050958,120]
[357019964,1743580241707,-500.0,0.00050958,120]
[357019965,1743580241716,-610.9,0.00050958,120]
[357019966,1743580241727,-500.0,0.00050958,120]
[357019967,1743580241737,-500.0,0.00050958,120]
[357019968,1743580241746,-500.0,0.00050958,120]
[357019969,1743580241755,-520.20681258,0.00050958,120]
[357019970,1743580241765,-500.0,0.00050958,120]
[357019971,1743580241774,-500.0,0.00050958,120]
[357019972,1743580241784,-500.0,0.00050958,120]
[357019973,1743580241793,-500.0,0.00050958,120]
[357019974,1743580241802,-500.0,0.00050958,120]
[357019975,1743580241811,-488.21303007,0.00050958,120]
[357019976,1743580241820,-1575.28,0.00050958,120]
[357019977,1743580241830,-831.94,0.00050958,120]
[357019978,1743580241839,-500.0,0.00050958,120]
[357019979,1743580241848,-1555.12,0.00050958,120]
[357019980,1743580241952,-506.78,0.00050958,120]
[357019981,1743580241963,-152.8,0.00051,48]
[357019982,1743580241974,-152.8,0.00051,48]
[357019983,1743580241983,-152.8,0.00051,48]
[357019984,1743580241993,-152.8,0.00051,48]
[357019985,1743580242002,-152.8,0.00051,48]
[357019986,1743580242012,-152.8,0.00051,48]
[357019987,1743580242022,-152.8,0.00051,48]
[357019988,1743580242032,-152.8,0.00051,48]
[357019989,1743580242042,-283.97562398,0.00051132,120]
[357019990,1743580242054,-557.5788265,0.00051193,2]
[357019991,1743580242065,-500.0,0.00051222,120]
[357019992,1743580242075,-500.0,0.00051222,120]
[357019993,1743580242085,-500.0,0.00051222,120]
[357019994,1743580242096,-500.0,0.00051222,120]
[357019995,1743580242107,-629.65,0.00051222,120]
[357019996,1743580242116,-410.55707852,0.00051222,120]
[357019997,1743580242125,-500.0,0.00051222,120]
[357019998,1743580242135,-1983.33,0.00051222,2]
[357019999,1743580242146,-500.0,0.00051231,2]
[357020000,1743580242156,-500.0,0.00051231,120]
[357020001,1743580242166,-500.0,0.00051231,120]
[357020002,1743580242177,-731.3,0.00051231,120]
[357020003,1743580242186,-500.0,0.00051231,30]
[357020004,1743580242196,-500.0,0.00051231,120]
[357020005,1743580242207,-500.0,0.00051231,120]
[357020006,1743580242217,-523.21063112,0.00051231,120]
[357020007,1743580242227,-500.0,0.00051231,120]
[357020008,1743580242237,-500.0,0.00051231,120]
[357020009,1743580242247,-500.0,0.00051231,120]
[357020010,1743580242256,-150.0,0.00051231,120]
[357020011,1743580242266,-1636.16,0.00051231,120]
[357020012,1743580242275,-1325.72,0.00051231,12]
[357020013,1743580242285,-1729.33,0.00051231,30]
[357020014,1743580242295,-500.0,0.00051231,120]
[357020015,1743580242305,-500.0,0.00051231,120]
[357020016,1743580242316,-500.0,0.00051231,120]
[357020017,1743580242326,-929.24,0.00051231,120]
[357020018,1743580242336,-500.0,0.00051231,120]
[357020019,1743580242345,-2593.03,0.00051231,120]
[357020020,1743580242355,-500.0,0.00051231,120]
[357020021,1743580242364,-500.0,0.00051231,120]
[357020022,1743580242373,-500.0,0.00051231,120]
[357020023,1743580242383,-833.33,0.00051231,120]
[357020024,1743580242393,-500.0,0.00051231,120]
[357020025,1743580242402,-1040.89,0.00051231,120]
[357020026,1743580242411,-500.0,0.00051231,120]
[357020027,1743580242420,-750.31,0.00051231,30]
[357020028,1743580242429,-1349.78,0.00051231,120]
[357020029,1743580242438,-158.73477568,0.00051231,120]
[357020030,1743580242448,-500.0,0.00051232,120]
[357020031,1743580242457,-807.16,0.00051232,120]
[357020032,1743580242467,-500.0,0.00051232,120]
[357020033,1743580242477,-500.0,0.00051232,120]
[357020034,1743580242487,-500.0,0.00051232,120]
[357020035,1743580242497,-500.0,0.00051232,120]
[357020036,1743580242507,-500.0,0.00051232,120]
[357020037,1743580242516,-1077.97,0.00051232,120]
[357020038,1743580242526,-500.0,0.00051232,120]
[357020039,1743580242536,-500.0,0.00051232,120]
[357020040,1743580242545,-500.0,0.00051232,120]
[357020041,1743580242554,-500.0,0.00051232,120]
[357020042,1743580242564,-500.0,0.00051232,120]
[357020043,1743580242573,-500.0,0.00051232,120]
[357020044,1743580242583,-610.9,0.00051232,120]
[357020045,1743580242592,-499.42041965,0.00051232,120]
[357020046,1743580242602,-500.0,0.00051232,120]
[357020047,1743580242612,-500.0,0.00051232,120]
[357020048,1743580242621,-510.38986879,0.00051232,120]
[357020049,1743580242631,-500.0,0.00051232,120]
[357020050,1743580242640,-500.0,0.00051232,120]
[357020051,1743580242649,-242.32509821,0.00051232,120]
[357020052,1743580242660,-500.0,0.00051232,120]
[357020053,1743580242669,-1575.28,0.00051232,120]
[357020054,1743580242678,-831.94,0.00051232,120]
[357020055,1743580242687,-254.78,0.00051232,120]
[357020056,1743580242696,-1555.12,0.00051232,120]
[357020057,1743580242705,-506.78,0.00051232,120]
[357020058,1743580242714,-178.3730967,0.00051405,44]
[357020059,1743580242724,-500.0,0.00051496,120]
[357020060,1743580242734,-508.23020865,0.00051496,120]
[357020061,1743580242743,-500.0,0.00051496,120]
[357020062,1743580242751,-500.0,0.00051496,120]
[357020063,1743580242760,-629.65,0.00051496,120]
[357020064,1743580242770,-500.0,0.00051496,120]
[357020065,1743580242779,-500.0,0.00051505,2]
[357020066,1743580242788,-500.0,0.00051505,120]
[357020067,1743580242797,-500.0,0.00051505,120]
[357020068,1743580242806,-731.3,0.00051505,120]
[357020069,1743580242815,-500.0,0.00051505,30]
[357020070,1743580242825,-500.0,0.00051505,120]
[357020071,1743580242834,-500.0,0.00051505,120]
[357020072,1743580242843,-500.0,0.00051505,120]
[357020073,1743580242852,-500.0,0.00051505,120]
[357020074,1743580242862,-500.0,0.00051505,120]
[357020075,1743580242872,-150.0,0.00051505,120]
[357020076,1743580242883,-1636.16,0.00051505,120]
[357020077,1743580242892,-1325.72,0.00051505,12]
[357020078,1743580242901,-1729.33,0.00051505,30]
[357020079,1743580242911,-515.05395067,0.00051505,120]
[357020080,1743580242920,-500.0,0.00051505,120]
[357020081,1743580242929,-500.0,0.00051505,120]
[357020082,1743580242938,-929.24,0.00051505,120]
[357020083,1743580242947,-500.0,0.00051505,120]
[357020084,1743580242958,-2593.03,0.00051505,120]
[357020085,1743580242967,-500.0,0.00051505,120]
[357020086,1743580242976,-500.0,0.00051505,120]
[357020087,1743580242986,-500.0,0.00051505,120]
[357020088,1743580242995,-833.33,0.00051505,120]
[357020089,1743580243005,-500.0,0.00051505,120]
[357020090,1743580243014,-1040.89,0.00051505,120]
[357020091,1743580243023,-500.0,0.00051505,120]
[357020092,1743580243033,-500.0,0.00051505,120]
[357020093,1743580243042,-750.31,0.00051505,30]
[357020094,1743580243051,-1349.78,0.00051505,120]
[357020095,1743580243062,-500.0,0.00051506,120]
[357020096,1743580243071,-807.16,0.00051506,120]
[357020097,1743580243081,-500.0,0.00051506,120]
[357020098,1743580243090,-499.52136479,0.00051506,120]
[357020099,1743580243099,-500.0,0.00051506,120]
[357020100,1743580243108,-500.0,0.00051506,120]
[357020101,1743580243118,-500.0,0.00051506,120]
[357020102,1743580243127,-1077.97,0.00051506,120]
[357020103,1743580243137,-500.0,0.00051506,120]
[357020104,1743580243146,-500.0,0.00051506,120]
[357020105,1743580243155,-500.0,0.00051506,120]
[357020106,1743580243165,-547.75,0.00051506,120]
[357020108,1743580243175,-500.0,0.00051506,120]
[357020109,1743580243184,-329.51037368,0.00051506,120]
[357020110,1743580243193,-610.9,0.00051506,120]
[357020111,1743580243202,-500.0,0.00051506,120]
[357020112,1743580243212,-500.0,0.00051506,120]
[357020113,1743580243222,-500.0,0.00051506,120]
[357020115,1743580243232,-500.0,0.00051506,120]
[357020116,1743580243241,-500.0,0.00051506,120]
[357020118,1743580243251,-1575.28,0.00051506,120]
[357020119,1743580243260,-831.94,0.00051506,120]
[357020121,1743580243269,-1555.12,0.00051506,120]
[357020122,1743580243278,-506.78,0.00051506,120]
[357020123,1743580243288,-1000.0,0.00051514,16]
[357020124,1743580243297,-283.97562398,0.00051548,120]
[357020125,1743580243306,-355.27038728,0.00051589,15]
[357020126,1743580243315,-500.0,0.00051652,60]
[357020127,1743580243325,-156.633322,0.00051672,30]
[357020128,1743580243335,-161.66,0.00051679,2]
[357020129,1743580243344,-578.20924308,0.00051741,2]
[357020131,1743580243355,-500.0,0.00051768,120]
[357020133,1743580243364,-747.76,0.00051768,120]
[357020135,1743580243374,-500.0,0.00051768,120]
[357020137,1743580243383,-500.0,0.00051768,120]
[357020139,1743580243392,-595.66353582,0.00051768,120]
[357020142,1743580243402,-560.97116948,0.00051768,120]
[357020145,1743580243412,-500.0,0.00051768,120]
[357020148,1743580243421,-448.15633536,0.0005177,120]
[357020151,1743580243431,-500.0,0.0005177,120]
[357020154,1743580243440,-500.0,0.0005177,120]
[357020157,1743580243449,-629.65,0.0005177,120]
[357020160,1743580243458,-500.0,0.0005177,120]
[357020162,1743580243467,-168.86,0.00051779,120]
[357020167,1743580243477,-500.0,0.00051779,2]
[357020172,1743580243487,-500.0,0.00051779,120]
[357020177,1743580243497,-500.0,0.00051779,120]
[357020182,1743580243506,-731.3,0.00051779,120]
[357020187,1743580243516,-500.0,0.00051779,30]
[357020191,1743580243525,-500.0,0.00051779,120]
[357020195,1743580243535,-507.40146784,0.00051779,120]
[357020199,1743580243545,-500.0,0.00051779,120]
[357020202,1743580243555,-500.0,0.00051779,120]
[357020205,1743580243564,-500.0,0.00051779,120]
[357020208,1743580243574,-150.0,0.00051779,120]
[357020212,1743580243584,-1636.16,0.00051779,120]
[357020216,1743580243594,-1325.72,0.00051779,12]
[357020220,1743580243604,-1729.33,0.00051779,30]
[357020224,1743580243614,-500.0,0.00051779,120]
[357020227,1743580243623,-500.0,0.00051779,120]
[357020231,1743580243633,-929.24,0.00051779,120]
[357020234,1743580243643,-588.74566189,0.00051779,120]
[357020236,1743580243652,-2593.03,0.00051779,120]
[357020237,1743580243662,-500.0,0.00051779,120]
[357020238,1743580243671,-500.0,0.00051779,120]
[357020240,1743580243680,-500.0,0.00051779,120]
[357020242,1743580243691,-833.33,0.00051779,120]
[357020244,1743580243700,-500.0,0.00051779,120]
[357020246,1743580243710,-1040.89,0.00051779,120]
[357020248,1743580243720,-500.0,0.00051779,120]
[357020250,1743580243730,-750.31,0.00051779,30]
[357020252,1743580243740,-1349.78,0.00051779,120]
[357020254,1743580243750,-444.0,0.0005178,7]
[357020262,1743580243855,-500.0,0.0005178,120]
[357020263,1743580243868,-807.16,0.0005178,120]
[357020264,1743580243880,-268.20250954,0.0005178,120]
[357020265,1743580243890,-500.0,0.0005178,120]
[357020266,1743580243900,-500.0,0.0005178,120]
[357020267,1743580243911,-500.0,0.0005178,120]
[357020268,1743580243920,-1077.97,0.0005178,120]
[357020269,1743580243930,-500.0,0.0005178,120]
[357020270,1743580243940,-500.0,0.0005178,120]
[357020271,1743580243951,-500.0,0.0005178,120]
[357020272,1743580243961,-500.0,0.0005178,120]
[357020273,1743580243971,-610.9,0.0005178,120]
[357020274,1743580243981,-203.06945341,0.0005178,120]
[357020275,1743580243991,-500.0,0.0005178,120]
[357020276,1743580244000,-500.0,0.0005178,120]
[357020277,1743580244010,-500.0,0.0005178,120]
[357020278,1743580244020,-335.75408297,0.0005178,120]
[357020279,1743580244029,-1575.28,0.0005178,120]
[357020280,1743580244038,-831.94,0.0005178,120]
[357020281,1743580244048,-1555.12,0.0005178,120]
[357020282,1743580244057,-506.78,0.0005178,120]
[357020283,1743580244067,-2000.0,0.000518,2]
[357020284,1743580244077,-283.97562398,0.00051964,120]
[357020285,1743580244086,-588.3514257,0.00052,53]
[357020286,1743580244096,-6768.32686457,0.00052034,4]
[357020287,1743580244110,-6884.25042203,0.00052034,4]
[357020288,1743580244119,-500.0,0.00052042,120]
[357020289,1743580244129,-747.76,0.00052042,120]
[357020290,1743580244139,-500.0,0.00052042,120]
[357020291,1743580244149,-385.08358359,0.00052042,120]
[357020292,1743580244158,-500.0,0.00052042,120]
[357020293,1743580244168,-13652.5772866,0.00052044,4]
[357020294,1743580244177,-500.0,0.00052044,120]
[357020295,1743580244186,-579.53856345,0.00052044,120]
[357020296,1743580244196,-629.65,0.00052044,120]
[357020297,1743580244205,-500.0,0.00052044,120]
[357020298,1743580244215,-500.0,0.00052053,2]
[357020299,1743580244224,-500.0,0.00052053,120]
[357020300,1743580244235,-500.0,0.00052053,120]
[357020301,1743580244244,-731.3,0.00052053,120]
[357020302,1743580244254,-500.0,0.00052053,30]
[357020303,1743580244264,-500.0,0.00052053,120]
[357020304,1743580244273,-395.71098256,0.00052053,120]
[357020305,1743580244282,-500.0,0.00052053,120]
[357020306,1743580244292,-539.52650684,0.00052053,120]
[357020307,1743580244302,-150.0,0.00052053,120]
[357020308,1743580244311,-1636.16,0.00052053,120]
[357020309,1743580244320,-1325.72,0.00052053,12]
[357020310,1743580244330,-1729.33,0.00052053,30]
[357020311,1743580244340,-500.0,0.00052053,120]
[357020312,1743580244349,-534.39231035,0.00052053,120]
[357020313,1743580244359,-929.24,0.00052053,120]
[357020314,1743580244369,-2593.03,0.00052053,120]
[357020315,1743580244378,-500.0,0.00052053,120]
[357020316,1743580244388,-500.0,0.00052053,120]
[357020317,1743580244399,-500.0,0.00052053,120]
[357020318,1743580244409,-833.33,0.00052053,120]
[357020319,1743580244419,-500.0,0.00052053,120]
[357020320,1743580244429,-1040.89,0.00052053,120]
[357020321,1743580244439,-500.0,0.00052053,120]
[357020322,1743580244448,-750.31,0.00052053,30]
[357020323,1743580244458,-1349.78,0.00052053,120]
[357020324,1743580244468,-500.0,0.00052054,120]
[357020325,1743580244478,-807.16,0.00052054,120]
[357020326,1743580244487,-500.0,0.00052054,120]
[357020327,1743580244496,-308.38860646,0.00052054,120]
[357020328,1743580244506,-500.0,0.00052054,120]
[357020329,1743580244516,-1077.97,0.00052054,120]
[357020330,1743580244525,-500.0,0.00052054,120]
[357020331,1743580244535,-500.0,0.00052054,120]
[357020332,1743580244545,-500.0,0.00052054,120]
[357020333,1743580244555,-150.87986238,0.00052054,120]
[357020334,1743580244566,-610.9,0.00052054,120]
[357020335,1743580244579,-500.0,0.00052054,120]
[357020336,1743580244591,-500.0,0.00052054,120]
[357020337,1743580244600,-500.0,0.00052054,120]
[357020338,1743580244610,-1575.28,0.00052054,120]
[357020339,1743580244619,-831.94,0.00052054,120]
[357020340,1743580244629,-1555.12,0.00052054,120]
[357020341,1743580244639,-506.78,0.00052054,120]
[357020342,1743580244649,-892.5450569,0.00052216,24]
[357020343,1743580244659,-162.380719,0.00052287,2]
[357020344,1743580244668,-599.60298507,0.00052289,2]
[357020345,1743580244678,-13652.5772866,0.00052308,4]
[357020346,1743580244688,-500.0,0.00052316,120]
[357020347,1743580244697,-747.76,0.00052316,120]
[357020348,1743580244707,-500.0,0.00052316,120]
[357020349,1743580244716,-500.0,0.00052316,120]
[357020350,1743580244732,-500.0,0.00052316,120]
[357020351,1743580244750,-13652.5772866,0.00052317,4]
[357020352,1743580244762,-500.0,0.00052318,120]
[357020353,1743580244776,-629.65,0.00052318,120]
[357020354,1743580244791,-500.0,0.00052318,120]
[357020355,1743580244807,-500.0,0.00052327,2]
[357020356,1743580244823,-500.0,0.00052327,120]
[357020357,1743580244836,-500.0,0.00052327,120]
[357020358,1743580244848,-731.3,0.00052327,120]
[357020359,1743580244861,-500.0,0.00052327,30]
[357020360,1743580244877,-500.0,0.00052327,120]
[357020361,1743580244890,-500.0,0.00052327,120]
[357020362,1743580244906,-150.0,0.00052327,120]
[357020363,1743580244922,-1636.16,0.00052327,120]
[357020364,1743580244935,-282.69626279,0.00052327,12]
[357020365,1743580244954,-1043.02373721,0.00052327,12]
[357020366,1743580244968,-1729.33,0.00052327,30]
[357020367,1743580244982,-500.0,0.00052327,120]
[357020368,1743580244996,-929.24,0.00052327,120]
[357020369,1743580245011,-2593.03,0.00052327,120]
[357020370,1743580245025,-232.36151959,0.00052327,120]
[357020371,1743580245039,-500.0,0.00052327,120]
[357020372,1743580245051,-500.0,0.00052327,120]
[357020373,1743580245063,-833.33,0.00052327,120]
[357020374,1743580245076,-500.0,0.00052327,120]
[357020375,1743580245091,-1040.89,0.00052327,120]
[357020376,1743580245102,-500.0,0.00052327,120]
[357020377,1743580245113,-750.31,0.00052327,30]
[357020378,1743580245124,-1349.78,0.00052327,120]
[357020379,1743580245139,-500.0,0.00052328,120]
[357020380,1743580245151,-807.16,0.00052328,120]
[357020381,1743580245162,-500.0,0.00052328,120]
[357020382,1743580245173,-500.0,0.00052328,120]
[357020383,1743580245185,-1077.97,0.00052328,120]
[357020384,1743580245198,-500.0,0.00052328,120]
[357020385,1743580245210,-500.0,0.00052328,120]
[357020386,1743580245222,-500.0,0.00052328,120]
[357020387,1743580245234,-610.9,0.00052328,120]
[357020388,1743580245246,-500.0,0.00052328,120]
[357020389,1743580245257,-500.0,0.00052328,120]
[357020390,1743580245270,-500.0,0.00052328,120]
[357020391,1743580245282,-1575.28,0.00052328,120]
[357020392,1743580245294,-831.94,0.00052328,120]
[357020393,1743580245307,-1555.12,0.00052328,120]
[357020394,1743580245320,-506.78,0.00052328,120]
[357020395,1743580245330,-283.97562398,0.00052379,120]
[357020396,1743580245339,-482.15,0.00052433,2]
[357020397,1743580245349,-13652.5772866,0.00052581,4]
[357020398,1743580245358,-500.0,0.0005259,120]
[357020399,1743580245368,-747.76,0.0005259,120]
[357020400,1743580245377,-500.0,0.0005259,120]
[357020401,1743580245386,-500.0,0.0005259,120]
[357020402,1743580245396,-13652.5772866,0.00052591,4]
[357020403,1743580245405,-510.3215132,0.00052592,120]
[357020404,1743580245415,-629.65,0.00052592,120]
[357020405,1743580245425,-500.0,0.00052592,120]
[357020406,1743580245435,-500.0,0.000526,120]
[357020407,1743580245444,-500.0,0.00052601,2]
[357020408,1743580245454,-500.0,0.00052601,120]
[357020409,1743580245463,-500.0,0.00052601,120]
[357020410,1743580245473,-731.3,0.00052601,120]
[357020411,1743580245482,-385.14975571,0.00052601,30]
[357020412,1743580245493,-560.19473225,0.00052601,120]
[357020413,1743580245502,-500.0,0.00052601,120]
[357020414,1743580245512,-150.0,0.00052601,120]
[357020415,1743580245522,-1636.16,0.00052601,120]
[357020416,1743580245531,-1325.72,0.00052601,12]
[357020417,1743580245541,-1729.33,0.00052601,30]
[357020418,1743580245551,-284.84872273,0.00052601,120]
[357020419,1743580245560,-929.24,0.00052601,120]
[357020420,1743580245570,-2593.03,0.00052601,120]
[357020421,1743580245580,-500.0,0.00052601,120]
[357020422,1743580245589,-549.64742711,0.00052601,120]
[357020423,1743580245599,-833.33,0.00052601,120]
[357020424,1743580245608,-500.0,0.00052601,120]
[357020425,1743580245618,-1040.89,0.00052601,120]
[357020426,1743580245627,-584.56518576,0.00052601,120]
[357020427,1743580245636,-750.31,0.00052601,30]
[357020428,1743580245646,-1349.78,0.00052601,120]
[357020429,1743580245656,-500.0,0.00052602,120]
[357020430,1743580245666,-807.16,0.00052602,120]
[357020431,1743580245676,-500.0,0.00052602,120]
[357020432,1743580245685,-500.0,0.00052602,120]
[357020433,1743580245695,-1077.97,0.00052602,120]
[357020434,1743580245704,-500.0,0.00052602,120]
[357020444,1743580245902,-524.6824601,0.00052602,120]
[357020445,1743580245916,-500.0,0.00052602,120]
[357020446,1743580245925,-610.9,0.00052602,120]
[357020447,1743580245935,-500.0,0.00052602,120]
[357020448,1743580245946,-500.0,0.00052602,120]
[357020449,1743580245955,-500.0,0.00052602,120]
[357020450,1743580245965,-1575.28,0.00052602,120]
[357020451,1743580245975,-831.94,0.00052602,120]
[357020452,1743580245985,-1555.12,0.00052602,120]
[357020453,1743580245995,-506.78,0.00052602,120]
[357020454,1743580246004,-1000.0,0.00052669,120]
[357020455,1743580246014,-355.27038728,0.00052777,15]
[357020456,1743580246023,-283.97562398,0.00052795,120]
[357020457,1743580246032,-621.78829552,0.00052837,2]
[357020458,1743580246042,-151.0,0.00052849,120]
[357020459,1743580246051,-13652.5772866,0.00052855,4]
[357020460,1743580246060,-500.0,0.00052864,120]
[357020461,1743580246069,-747.76,0.00052864,120]
[357020462,1743580246079,-543.21279115,0.00052864,120]
[357020463,1743580246088,-500.0,0.00052864,120]
[357020464,1743580246097,-13652.5772866,0.00052865,4]
[357020465,1743580246107,-629.65,0.00052866,120]
[357020466,1743580246116,-500.0,0.00052866,120]
[357020467,1743580246125,-500.0,0.00052875,2]
[357020468,1743580246135,-500.0,0.00052875,120]
[357020469,1743580246144,-500.0,0.00052875,120]
[357020470,1743580246154,-731.3,0.00052875,120]
[357020471,1743580246163,-500.0,0.00052875,120]
[357020472,1743580246172,-150.0,0.00052875,120]
[357020473,1743580246182,-1636.16,0.00052875,120]
[357020475,1743580246192,-1325.72,0.00052875,12]
[357020476,1743580246201,-1729.33,0.00052875,30]
[357020477,1743580246210,-929.24,0.00052875,120]
[357020478,1743580246220,-2593.03,0.00052875,120]
[357020479,1743580246230,-500.0,0.00052875,120]
[357020482,1743580246239,-833.33,0.00052875,120]
[357020485,1743580246249,-500.0,0.00052875,120]
[357020487,1743580246258,-1040.89,0.00052875,120]
[357020489,1743580246267,-750.31,0.00052875,30]
[357020490,1743580246276,-1349.78,0.00052875,120]
[357020491,1743580246286,-500.0,0.00052876,120]
[357020492,1743580246295,-807.16,0.00052876,120]
[357020494,1743580246305,-500.0,0.00052876,120]
[357020495,1743580246314,-500.0,0.00052876,120]
[357020496,1743580246323,-1077.97,0.00052876,120]
[357020497,1743580246332,-500.0,0.00052876,120]
[357020499,1743580246342,-500.0,0.00052876,120]
[357020502,1743580246351,-610.9,0.00052876,120]
[357020504,1743580246361,-500.0,0.00052876,120]
[357020506,1743580246371,-500.0,0.00052876,120]
[357020508,1743580246381,-500.0,0.00052876,120]
[357020510,1743580246390,-1575.28,0.00052876,120]
[357020512,1743580246399,-831.94,0.00052876,120]
[357020513,1743580246409,-1555.12,0.00052876,120]
[357020514,1743580246419,-506.78,0.00052876,120]
[357020515,1743580246428,-154.28,0.00052984,120]
[357020516,1743580246437,-500.0,0.00053,54]
[357020517,1743580246447,-13652.5772866,0.0005313,4]
[357020518,1743580246456,-324.90250852,0.00053138,120]
[357020519,1743580246465,-747.76,0.00053138,120]
[357020520,1743580246475,-200.78609886,0.00053138,120]
[357020521,1743580246485,-500.0,0.00053138,120]
[357020522,1743580246495,-629.65,0.0005314,120]
[357020523,1743580246504,-13652.5772866,0.0005314,4]
[357020524,1743580246513,-500.0,0.00053149,2]
[357020525,1743580246523,-500.0,0.00053149,120]
[357020526,1743580246532,-500.0,0.00053149,120]
[357020527,1743580246542,-731.3,0.00053149,120]
[357020528,1743580246551,-500.0,0.00053149,120]
[357020529,1743580246561,-150.0,0.00053149,120]
[357020530,1743580246570,-1636.16,0.00053149,120]
[357020531,1743580246580,-1325.72,0.00053149,12]
[357020532,1743580246589,-1729.33,0.00053149,30]
[357020533,1743580246599,-929.24,0.00053149,120]
[357020534,1743580246608,-2593.03,0.00053149,120]
[357020535,1743580246618,-500.0,0.00053149,120]
[357020536,1743580246627,-833.33,0.00053149,120]
[357020537,1743580246638,-500.0,0.00053149,120]
[357020538,1743580246648,-1040.89,0.00053149,120]
[357020539,1743580246657,-750.31,0.00053149,30]
[357020540,1743580246667,-1349.78,0.00053149,120]
[357020541,1743580246678,-500.0,0.0005315,120]
[357020542,1743580246688,-807.16,0.0005315,120]
[357020543,1743580246698,-500.0,0.0005315,120]
[357020544,1743580246708,-500.0,0.0005315,120]
[357020545,1743580246718,-1077.97,0.0005315,120]
[357020546,1743580246728,-500.0,0.0005315,120]
[357020547,1743580246738,-500.0,0.0005315,120]
[357020548,1743580246748,-610.9,0.0005315,120]
[357020549,1743580246758,-500.0,0.0005315,120]
[357020550,1743580246767,-500.0,0.0005315,120]
[357020551,1743580246777,-500.0,0.0005315,120]
[357020552,1743580246787,-1575.28,0.0005315,120]
[357020553,1743580246796,-831.94,0.0005315,120]
[357020554,1743580246805,-1555.12,0.0005315,120]
[357020555,1743580246815,-506.78,0.0005315,120]